[Event "Live Chess"]
[Site "Chess.com"]
[Date "2023.05.20"]
[Round "-"]
[White "mightysmasher"]
[Black "CheckString"]
[Result "1-0"]
[WhiteElo "2094"]
[BlackElo "1259"]
[TimeControl "300"]
[EndTime "10:50:36 PDT"]
[Termination "mightysmasher won by resignation"]

1. e4 {[%clk 0:04:57.9]} 1... c6 {[%clk 0:04:59.4]} 2. d4 {[%clk 0:04:56.7]}
2... d5 {[%clk 0:04:58.9]} 3. Nd2 {[%clk 0:04:55.3]} 3... dxe4 {[%clk
0:04:57.4]} 4. Nxe4 {[%clk 0:04:53.7]} 4... Bf5 {[%clk 0:04:57.2]} 5. Ng3 {[%clk
0:04:52.3]} 5... e6 {[%clk 0:04:54.9]} 6. Nxf5 {[%clk 0:04:50.6]} 6... exf5
{[%clk 0:04:54.8]} 7. c3 {[%clk 0:04:48.2]} 7... g6 {[%clk 0:04:52.5]} 8. Bd3
{[%clk 0:04:47.4]} 8... Bg7 {[%clk 0:04:51.6]} 9. Nf3 {[%clk 0:04:46.6]} 9...
Ne7 {[%clk 0:04:50.6]} 10. O-O {[%clk 0:04:45.7]} 10... O-O {[%clk 0:04:50.2]}
11. Bf4 {[%clk 0:04:44.6]} 11... Nd7 {[%clk 0:04:47.7]} 12. Qd2 {[%clk
0:04:42.8]} 12... Nd5 {[%clk 0:04:46.4]} 13. Bh6 {[%clk 0:04:40.9]} 13... Bxh6
{[%clk 0:04:43.9]} 14. Qxh6 {[%clk 0:04:39.6]} 14... N7f6 {[%clk 0:04:41.8]} 15.
Ng5 {[%clk 0:04:36.9]} 15... Re8 {[%clk 0:04:38.3]} 16. h4 {[%clk 0:04:34.8]}
16... Nf4 {[%clk 0:04:30.8]} 17. Bc2 {[%clk 0:04:30.1]} 17... Ne2+ {[%clk
0:04:27]} 18. Kh1 {[%clk 0:04:27.5]} 18... Qd5 {[%clk 0:04:19.9]} 19. Bb3 {[%clk
0:04:21.9]} 19... Qe4 {[%clk 0:04:08.1]} 20. Bxf7+ {[%clk 0:04:19.4]} 20... Kh8
{[%clk 0:04:01.6]} 21. Nxe4 {[%clk 0:04:15.9]} 21... Rxe4 {[%clk 0:04:00.9]} 22.
Bxg6 {[%clk 0:04:13.9]} 22... Rg8 {[%clk 0:03:56.7]} 23. Bxf5 {[%clk 0:04:12.5]}
1-0

[Event "Live Chess"]
[Site "Chess.com"]
[Date "2023.05.20"]
[Round "-"]
[White "toog"]
[Black "laki79"]
[Result "1-0"]
[WhiteElo "2641"]
[BlackElo "2303"]
[TimeControl "300"]
[EndTime "10:50:48 PDT"]
[Termination "toog won on time"]

1. e4 {[%clk 0:04:56.7]} 1... c5 {[%clk 0:04:58.3]} 2. Nf3 {[%clk 0:04:54.9]}
2... d6 {[%clk 0:04:57.5]} 3. c3 {[%clk 0:04:52]} 3... Nf6 {[%clk 0:04:55.7]} 4.
Be2 {[%clk 0:04:49.9]} 4... Nc6 {[%clk 0:04:53]} 5. d4 {[%clk 0:04:47.8]} 5...
cxd4 {[%clk 0:04:47.8]} 6. cxd4 {[%clk 0:04:42.1]} 6... Nxe4 {[%clk 0:04:46.8]}
7. d5 {[%clk 0:04:37.2]} 7... Qa5+ {[%clk 0:04:45.6]} 8. Nc3 {[%clk 0:04:33.6]}
8... Nxc3 {[%clk 0:04:43.6]} 9. bxc3 {[%clk 0:04:33.5]} 9... Nd8 {[%clk
0:04:41.4]} 10. O-O {[%clk 0:04:31.1]} 10... e5 {[%clk 0:04:38.8]} 11. Rb1
{[%clk 0:04:22.2]} 11... Bd7 {[%clk 0:04:22.6]} 12. Nd2 {[%clk 0:04:09.7]} 12...
Be7 {[%clk 0:04:16.4]} 13. Nc4 {[%clk 0:04:08.5]} 13... Qc7 {[%clk 0:04:13.8]}
14. a4 {[%clk 0:04:06.6]} 14... O-O {[%clk 0:04:06.8]} 15. Ba3 {[%clk
0:04:04.5]} 15... b6 {[%clk 0:03:56.7]} 16. Nxe5 {[%clk 0:04:01.7]} 16... Bxa4
{[%clk 0:02:30.1]} 17. Qxa4 {[%clk 0:03:51.1]} 17... dxe5 {[%clk 0:02:28.9]} 18.
Rfd1 {[%clk 0:03:41]} 18... Nb7 {[%clk 0:02:17.6]} 19. Qc6 {[%clk 0:03:22.7]}
19... Qxc6 {[%clk 0:01:45.3]} 20. dxc6 {[%clk 0:03:22.6]} 20... Nc5 {[%clk
0:01:42.5]} 21. Bxc5 {[%clk 0:03:03.5]} 21... Bxc5 {[%clk 0:01:40.1]} 22. Ba6
{[%clk 0:03:02.8]} 22... Rfc8 {[%clk 0:01:02.7]} 23. Bxc8 {[%clk 0:02:58]} 23...
Rxc8 {[%clk 0:01:02.6]} 24. c7 {[%clk 0:02:56.4]} 24... Rxc7 {[%clk 0:01:01.3]}
25. Rd8+ {[%clk 0:02:53.9]} 25... Bf8 {[%clk 0:01:00.1]} 26. Rbd1 {[%clk
0:02:45.8]} 26... g6 {[%clk 0:00:52.1]} 27. Re8 {[%clk 0:02:38.8]} 27... Kg7
{[%clk 0:00:48.8]} 28. Rxe5 {[%clk 0:02:36.6]} 28... Rxc3 {[%clk 0:00:46.5]} 29.
h4 {[%clk 0:02:32.6]} 29... h5 {[%clk 0:00:43.5]} 30. Rd7 {[%clk 0:02:19.5]}
30... a5 {[%clk 0:00:35.3]} 31. Re4 {[%clk 0:02:12.9]} 31... Bc5 {[%clk
0:00:31.5]} 32. Rf4 {[%clk 0:02:09.1]} 32... Rc1+ {[%clk 0:00:18.2]} 33. Kh2
{[%clk 0:02:07.3]} 33... a4 {[%clk 0:00:17.5]} 34. Rfxf7+ {[%clk 0:02:04.7]}
34... Kg8 {[%clk 0:00:16]} 35. Rg7+ {[%clk 0:02:00]} 35... Kf8 {[%clk 0:00:14]}
36. Rxg6 {[%clk 0:01:58.1]} 36... a3 {[%clk 0:00:11]} 37. Rh6 {[%clk 0:01:53.1]}
37... Kg8 {[%clk 0:00:09.7]} 38. Ra7 {[%clk 0:01:49]} 38... Bxf2 {[%clk
0:00:05.4]} 39. Rg6+ {[%clk 0:01:45.2]} 39... Kh8 {[%clk 0:00:03.2]} 40. Rxa3
{[%clk 0:01:28.5]} 40... Rc4 {[%clk 0:00:00.9]} 41. g3 {[%clk 0:01:23.3]} 1-0

[Event "Live Chess"]
[Site "Chess.com"]
[Date "2023.05.20"]
[Round "-"]
[White "Jio85"]
[Black "Singapourfeuj"]
[Result "1-0"]
[WhiteElo "2020"]
[BlackElo "2238"]
[TimeControl "300"]
[EndTime "10:50:51 PDT"]
[Termination "Jio85 won - game abandoned"]

1. e4 {[%clk 0:04:58.5]} 1... e6 {[%clk 0:04:58.7]} 2. d4 {[%clk 0:04:57.6]}
2... d5 {[%clk 0:04:57.8]} 3. e5 {[%clk 0:04:57.1]} 3... c5 {[%clk 0:04:56.7]}
4. Nf3 {[%clk 0:04:56.7]} 4... Nc6 {[%clk 0:04:55.6]} 5. c3 {[%clk 0:04:56.2]}
5... Bd7 {[%clk 0:04:54]} 6. Bd3 {[%clk 0:04:55.4]} 6... Qb6 {[%clk 0:04:51.2]}
7. O-O {[%clk 0:04:54.5]} 7... Nh6 {[%clk 0:04:49.5]} 8. Bxh6 {[%clk 0:04:45.9]}
8... gxh6 {[%clk 0:04:47.7]} 9. dxc5 {[%clk 0:04:43.8]} 9... Bxc5 {[%clk
0:04:45.7]} 10. Qb3 {[%clk 0:04:41.9]} 10... O-O {[%clk 0:04:42.8]} 11. Qxb6
{[%clk 0:04:40.5]} 11... Bxb6 {[%clk 0:04:40.6]} 12. Nbd2 {[%clk 0:04:39.1]}
12... Bc7 {[%clk 0:04:39.4]} 13. Rae1 {[%clk 0:04:36.2]} 13... Kg7 {[%clk
0:04:37.8]} 14. Re2 {[%clk 0:04:32.3]} 14... a5 {[%clk 0:04:35.6]} 15. Rfe1
{[%clk 0:04:31.3]} 15... a4 {[%clk 0:04:34.2]} 16. a3 {[%clk 0:04:28.9]} 16...
Na5 {[%clk 0:04:05.1]} 17. Nd4 {[%clk 0:04:19.3]} 17... Rab8 {[%clk 0:03:59.3]}
18. Nb5 {[%clk 0:04:05]} 18... Rfc8 {[%clk 0:03:50.6]} 19. f4 {[%clk 0:03:57.5]}
19... Bb6+ {[%clk 0:03:43.8]} 20. Kh1 {[%clk 0:03:49.4]} 20... Rf8 {[%clk
0:03:37.3]} 21. Nf3 {[%clk 0:03:37.6]} 21... Nc4 {[%clk 0:03:31.5]} 22. Bxc4
{[%clk 0:03:35.8]} 22... dxc4 {[%clk 0:03:30.5]} 23. Nd6 {[%clk 0:03:28.5]}
23... Bc6 {[%clk 0:03:29.4]} 24. Nxc4 {[%clk 0:03:07.7]} 1-0

[Event "Live Chess"]
[Site "Chess.com"]
[Date "2023.05.20"]
[Round "-"]
[White "FlyingChessKestrel13"]
[Black "Missedidea"]
[Result "1-0"]
[WhiteElo "2134"]
[BlackElo "1685"]
[TimeControl "300"]
[EndTime "10:50:52 PDT"]
[Termination "FlyingChessKestrel13 won by checkmate"]

1. e4 {[%clk 0:04:56.9]} 1... c5 {[%clk 0:04:58.4]} 2. g3 {[%clk 0:04:51.1]}
2... g6 {[%clk 0:04:55.3]} 3. Bg2 {[%clk 0:04:49.6]} 3... Bg7 {[%clk 0:04:54.4]}
4. c3 {[%clk 0:04:46.8]} 4... Nc6 {[%clk 0:04:50.5]} 5. Ne2 {[%clk 0:04:44.7]}
5... e6 {[%clk 0:04:46.2]} 6. O-O {[%clk 0:04:39.8]} 6... Nge7 {[%clk
0:04:44.4]} 7. d4 {[%clk 0:04:37.8]} 7... d6 {[%clk 0:04:37]} 8. d5 {[%clk
0:04:36]} 8... Ne5 {[%clk 0:04:26.4]} 9. Nd2 {[%clk 0:04:24.4]} 9... exd5 {[%clk
0:04:20.9]} 10. exd5 {[%clk 0:04:22.3]} 10... O-O {[%clk 0:04:18.6]} 11. f4
{[%clk 0:04:20]} 11... Ng4 {[%clk 0:04:13.9]} 12. Nc4 {[%clk 0:04:10.7]} 12...
f5 {[%clk 0:04:06.9]} 13. h3 {[%clk 0:04:07]} 13... Nf6 {[%clk 0:04:04.7]} 14.
Ne3 {[%clk 0:04:04.3]} 14... b5 {[%clk 0:03:58.9]} 15. a4 {[%clk 0:03:56.5]}
15... bxa4 {[%clk 0:03:53.8]} 16. Rxa4 {[%clk 0:03:52.7]} 16... Bd7 {[%clk
0:03:46.5]} 17. Ra6 {[%clk 0:03:50.3]} 17... Bb5 {[%clk 0:03:44]} 18. Ra1 {[%clk
0:03:44.8]} 18... a5 {[%clk 0:03:35.6]} 19. c4 {[%clk 0:03:42.2]} 19... Bd7
{[%clk 0:03:32.4]} 20. Bd2 {[%clk 0:03:39.8]} 20... a4 {[%clk 0:03:29.6]} 21.
Nc3 {[%clk 0:03:37.3]} 21... Nh5 {[%clk 0:03:19.7]} 22. Kh2 {[%clk 0:03:33.8]}
22... Qe8 {[%clk 0:03:02.1]} 23. Ra3 {[%clk 0:03:22.4]} 23... Nc8 {[%clk
0:02:56.9]} 24. Qc2 {[%clk 0:03:16.4]} 24... Nb6 {[%clk 0:02:53.8]} 25. Rfa1
{[%clk 0:03:14.1]} 25... Bd4 {[%clk 0:02:49.6]} 26. Nf1 {[%clk 0:03:11]} 26...
Nxc4 {[%clk 0:02:47.1]} 27. R3a2 {[%clk 0:03:02.8]} 27... Nxd2 {[%clk 0:02:44]}
28. Qxd2 {[%clk 0:03:00.7]} 28... Nf6 {[%clk 0:02:38.1]} 29. Qc2 {[%clk
0:02:54.1]} 29... Ne4 {[%clk 0:02:35.6]} 30. Bxe4 {[%clk 0:02:50.6]} 30... fxe4
{[%clk 0:02:34.1]} 31. Nxe4 {[%clk 0:02:50.2]} 31... Bf5 {[%clk 0:02:30.9]} 32.
Nfd2 {[%clk 0:02:48.4]} 32... a3 {[%clk 0:02:28.2]} 33. Rxa3 {[%clk 0:02:45.4]}
33... Rxa3 {[%clk 0:02:26.4]} 34. Rxa3 {[%clk 0:02:43.9]} 34... Kg7 {[%clk
0:02:22]} 35. Rf3 {[%clk 0:02:36.4]} 35... Qb8 {[%clk 0:02:17.9]} 36. b3 {[%clk
0:02:33.7]} 36... Re8 {[%clk 0:02:14.7]} 37. g4 {[%clk 0:02:31.5]} 37... Bd7
{[%clk 0:02:08.6]} 38. f5 {[%clk 0:02:25.9]} 38... Re5 {[%clk 0:02:01.2]} 39.
f6+ {[%clk 0:02:23.9]} 39... Kf8 {[%clk 0:01:59.4]} 40. f7 {[%clk 0:02:19.3]}
40... Qb4 {[%clk 0:01:51.2]} 41. Kg3 {[%clk 0:02:01.4]} 41... h5 {[%clk
0:01:42.5]} 42. Nf6 {[%clk 0:01:58.9]} 42... h4+ {[%clk 0:01:37.3]} 43. Kxh4
{[%clk 0:01:54.8]} 43... Re4 {[%clk 0:01:34.1]} 44. Nxd7+ {[%clk 0:01:48.2]}
44... Kg7 {[%clk 0:01:31.3]} 45. f8=Q+ {[%clk 0:01:46.9]} 45... Kh7 {[%clk
0:01:29.8]} 46. Rf7+ {[%clk 0:01:45.6]} 46... Bg7 {[%clk 0:01:26.6]} 47. Qxg7#
{[%clk 0:01:44.6]} 1-0

[Event "Live Chess"]
[Site "Chess.com"]
[Date "2023.05.20"]
[Round "-"]
[White "peter-785"]
[Black "misha464"]
[Result "1-0"]
[WhiteElo "1158"]
[BlackElo "743"]
[TimeControl "300"]
[EndTime "10:51:06 PDT"]
[Termination "peter-785 won by resignation"]

1. e4 {[%clk 0:04:58]} 1... e5 {[%clk 0:04:58.6]} 2. Nf3 {[%clk 0:04:56.9]} 2...
Nc6 {[%clk 0:04:56.9]} 3. Bc4 {[%clk 0:04:56.4]} 3... d6 {[%clk 0:04:55.5]} 4.
d4 {[%clk 0:04:55.8]} 4... exd4 {[%clk 0:04:54.2]} 5. Nxd4 {[%clk 0:04:54.3]}
5... Nxd4 {[%clk 0:04:53.7]} 6. Qxd4 {[%clk 0:04:53.7]} 6... Nf6 {[%clk
0:04:53.5]} 7. e5 {[%clk 0:04:49.6]} 7... dxe5 {[%clk 0:04:51.1]} 8. Qxd8+
{[%clk 0:04:48.4]} 8... Kxd8 {[%clk 0:04:50.6]} 9. Bxf7 {[%clk 0:04:47.2]} 9...
g6 {[%clk 0:04:42.7]} 10. O-O {[%clk 0:04:45]} 10... Bg7 {[%clk 0:04:42.1]} 11.
Be3 {[%clk 0:04:34.8]} 11... Bf5 {[%clk 0:04:39.9]} 12. c3 {[%clk 0:04:32.7]}
12... Ke7 {[%clk 0:04:36.1]} 13. Bb3 {[%clk 0:04:30.5]} 13... b6 {[%clk
0:04:35.1]} 14. Nd2 {[%clk 0:04:26.6]} 14... Ne4 {[%clk 0:04:33]} 15. Nxe4
{[%clk 0:04:24.1]} 15... Bxe4 {[%clk 0:04:32.3]} 16. Rad1 {[%clk 0:04:19.1]}
16... Rad8 {[%clk 0:04:31.4]} 17. f3 {[%clk 0:04:09.9]} 17... Rxd1 {[%clk
0:04:28.1]} 18. Rxd1 {[%clk 0:04:08.7]} 18... Bf5 {[%clk 0:04:26.7]} 19. g4
{[%clk 0:03:52.2]} 19... Be6 {[%clk 0:04:17.3]} 20. Bxe6 {[%clk 0:03:46.2]}
20... Kxe6 {[%clk 0:04:17.2]} 21. Kg2 {[%clk 0:03:41.9]} 21... Re8 {[%clk
0:04:16]} 22. h3 {[%clk 0:03:30.7]} 22... Re7 {[%clk 0:04:14.7]} 23. f4 {[%clk
0:03:19.6]} 23... exf4 {[%clk 0:04:11.3]} 24. Bxf4 {[%clk 0:03:18.4]} 24... Rd7
{[%clk 0:04:10.1]} 25. Re1+ {[%clk 0:03:16.5]} 25... Kf7 {[%clk 0:04:02.7]} 26.
Re2 {[%clk 0:03:11.5]} 26... c5 {[%clk 0:03:56.4]} 27. Kf3 {[%clk 0:03:04.7]}
27... h5 {[%clk 0:03:52.4]} 28. gxh5 {[%clk 0:02:54.5]} 28... gxh5 {[%clk
0:03:52.3]} 29. Rg2 {[%clk 0:02:45.9]} 29... Bf6 {[%clk 0:03:41.7]} 30. Re2
{[%clk 0:02:21.5]} 30... a6 {[%clk 0:03:38.7]} 31. Kg3 {[%clk 0:02:18.2]} 31...
b5 {[%clk 0:03:37.9]} 32. Kf3 {[%clk 0:02:02.7]} 32... a5 {[%clk 0:03:36.9]} 33.
Rd2 {[%clk 0:01:50]} 33... Rxd2 {[%clk 0:03:32.7]} 34. Bxd2 {[%clk 0:01:48.5]}
34... Be5 {[%clk 0:03:26.7]} 35. Bf4 {[%clk 0:01:45.5]} 35... Bxf4 {[%clk
0:03:24.9]} 36. Kxf4 {[%clk 0:01:45.1]} 36... b4 {[%clk 0:03:21.8]} 37. Kg5
{[%clk 0:01:42.2]} 37... c4 {[%clk 0:02:42.3]} 38. Kxh5 {[%clk 0:01:17.9]} 38...
Kg7 {[%clk 0:02:36]} 39. Kg5 {[%clk 0:01:12]} 39... Kh7 {[%clk 0:02:34.1]} 40.
h4 {[%clk 0:01:10]} 40... Kg7 {[%clk 0:02:32.8]} 41. h5 {[%clk 0:01:09.1]} 41...
Kh7 {[%clk 0:02:32]} 42. h6 {[%clk 0:01:06.1]} 42... Kh8 {[%clk 0:02:30.9]} 43.
Kf6 {[%clk 0:01:03.3]} 43... Kh7 {[%clk 0:02:28.9]} 44. Ke5 {[%clk 0:01:02.3]}
44... Kxh6 {[%clk 0:02:25.5]} 45. Kd4 {[%clk 0:00:56.8]} 45... bxc3 {[%clk
0:02:22.3]} 46. bxc3 {[%clk 0:00:54.9]} 46... Kg6 {[%clk 0:02:20.7]} 47. Kxc4
{[%clk 0:00:54.3]} 47... Kf6 {[%clk 0:02:20.3]} 48. Kd5 {[%clk 0:00:53.5]} 48...
Ke7 {[%clk 0:02:17.3]} 49. Kc5 {[%clk 0:00:51.7]} 49... Ke6 {[%clk 0:02:16.4]}
50. c4 {[%clk 0:00:50.3]} 50... Ke5 {[%clk 0:02:15.2]} 51. a3 {[%clk 0:00:48.7]}
51... Ke6 {[%clk 0:02:14.1]} 52. a4 {[%clk 0:00:47.2]} 52... Kd7 {[%clk
0:02:13.3]} 53. Kb5 {[%clk 0:00:44.6]} 53... Kd6 {[%clk 0:02:11.7]} 54. Kxa5
{[%clk 0:00:42.2]} 54... Kc5 {[%clk 0:02:11.2]} 55. Ka6 {[%clk 0:00:39.6]} 55...
Kxc4 {[%clk 0:02:09.4]} 56. a5 {[%clk 0:00:37.8]} 56... Kc5 {[%clk 0:02:08.5]}
57. Kb7 {[%clk 0:00:36.9]} 57... Kb5 {[%clk 0:02:07.2]} 58. a6 {[%clk
0:00:35.8]} 1-0

[Event "Live Chess"]
[Site "Chess.com"]
[Date "2023.05.20"]
[Round "-"]
[White "flyingpuffins"]
[Black "alexlines8"]
[Result "1-0"]
[WhiteElo "1982"]
[BlackElo "1248"]
[TimeControl "300"]
[EndTime "10:51:10 PDT"]
[Termination "flyingpuffins won by checkmate"]

1. e4 {[%clk 0:04:58]} 1... c6 {[%clk 0:04:59.1]} 2. d4 {[%clk 0:04:57]} 2... d5
{[%clk 0:04:58.1]} 3. Nc3 {[%clk 0:04:56.4]} 3... Nf6 {[%clk 0:04:55.8]} 4. e5
{[%clk 0:04:51.9]} 4... Ne4 {[%clk 0:04:51.8]} 5. Nxe4 {[%clk 0:04:49.9]} 5...
dxe4 {[%clk 0:04:51.7]} 6. f3 {[%clk 0:04:48.2]} 6... exf3 {[%clk 0:04:50.3]} 7.
Nxf3 {[%clk 0:04:48.1]} 7... Bg4 {[%clk 0:04:48.1]} 8. Bc4 {[%clk 0:04:46.3]}
8... e6 {[%clk 0:04:44.6]} 9. O-O {[%clk 0:04:44.8]} 9... Bxf3 {[%clk
0:04:34.4]} 10. Rxf3 {[%clk 0:04:38.8]} 10... Bc5 {[%clk 0:04:29.9]} 11. Be3
{[%clk 0:04:32.7]} 11... Bb6 {[%clk 0:04:23.1]} 12. c3 {[%clk 0:04:29.1]} 12...
O-O {[%clk 0:04:20.1]} 13. Bd3 {[%clk 0:04:24.7]} 13... Nd7 {[%clk 0:04:08.1]}
14. Bxh7+ {[%clk 0:04:11.6]} 14... Kxh7 {[%clk 0:04:06.4]} 15. Rh3+ {[%clk
0:04:10.7]} 15... Kg8 {[%clk 0:04:01.4]} 16. Qh5 {[%clk 0:04:09.4]} 16... f6
{[%clk 0:03:59]} 17. Qh7+ {[%clk 0:03:54]} 17... Kf7 {[%clk 0:03:57]} 18. Rf1
{[%clk 0:03:53]} 18... Ke8 {[%clk 0:03:40.2]} 19. Qxg7 {[%clk 0:03:49.5]} 19...
f5 {[%clk 0:03:30.5]} 20. Bg5 {[%clk 0:03:34.7]} 20... Nf6 {[%clk 0:03:18.7]}
21. Bxf6 {[%clk 0:03:30.3]} 21... Rxf6 {[%clk 0:03:11]} 22. Rh8+ {[%clk
0:03:22.4]} 22... Rf8 {[%clk 0:03:08.7]} 23. Rxf8# {[%clk 0:03:21.6]} 1-0

[Event "Live Chess"]
[Site "Chess.com"]
[Date "2023.05.20"]
[Round "-"]
[White "Conradical12"]
[Black "bedsdrout"]
[Result "1-0"]
[WhiteElo "1519"]
[BlackElo "417"]
[TimeControl "300"]
[EndTime "10:51:22 PDT"]
[Termination "Conradical12 won by checkmate"]

1. e4 {[%clk 0:04:59.1]} 1... e5 {[%clk 0:04:49]} 2. d4 {[%clk 0:04:58.2]} 2...
exd4 {[%clk 0:04:45.3]} 3. Nf3 {[%clk 0:04:57.8]} 3... Bc5 {[%clk 0:04:43.6]} 4.
Bc4 {[%clk 0:04:57]} 4... d3 {[%clk 0:04:42.4]} 5. cxd3 {[%clk 0:04:52.3]} 5...
Nf6 {[%clk 0:04:40.9]} 6. e5 {[%clk 0:04:50.6]} 6... Ne4 {[%clk 0:04:37.2]} 7.
dxe4 {[%clk 0:04:49.3]} 7... Nc6 {[%clk 0:04:29.4]} 8. Qd5 {[%clk 0:04:48.6]}
8... O-O {[%clk 0:04:18.3]} 9. Qxc5 {[%clk 0:04:47.4]} 9... d6 {[%clk
0:04:11.2]} 10. exd6 {[%clk 0:04:45]} 10... cxd6 {[%clk 0:04:08.9]} 11. Qd5
{[%clk 0:04:44.1]} 11... Be6 {[%clk 0:04:03.6]} 12. Qd3 {[%clk 0:04:42.5]} 12...
Qa5+ {[%clk 0:03:56.4]} 13. Bd2 {[%clk 0:04:40.7]} 13... Qa4 {[%clk 0:03:51.4]}
14. Nc3 {[%clk 0:04:35.8]} 14... Qa5 {[%clk 0:03:41.4]} 15. Nd5 {[%clk
0:04:23.6]} 15... Qa6 {[%clk 0:03:35.3]} 16. Bxa6 {[%clk 0:04:20.5]} 16... bxa6
{[%clk 0:03:29.3]} 17. O-O {[%clk 0:04:16.8]} 17... Rab8 {[%clk 0:03:19.2]} 18.
Bc3 {[%clk 0:04:13.5]} 18... Bg4 {[%clk 0:03:10.8]} 19. Rae1 {[%clk 0:04:02.8]}
19... a5 {[%clk 0:02:58.1]} 20. Re3 {[%clk 0:04:00.6]} 20... a4 {[%clk
0:02:57.2]} 21. Nd4 {[%clk 0:03:57.7]} 21... Be6 {[%clk 0:02:45]} 22. Nxc6
{[%clk 0:03:53.8]} 22... Rbc8 {[%clk 0:02:36.8]} 23. e5 {[%clk 0:03:49.4]} 23...
dxe5 {[%clk 0:02:31]} 24. Nce7+ {[%clk 0:03:35.2]} 24... Kh8 {[%clk 0:02:17.7]}
25. Nxc8 {[%clk 0:03:32.1]} 25... Rxc8 {[%clk 0:02:16]} 26. Ne7 {[%clk
0:03:30.4]} 26... Ra8 {[%clk 0:02:09.2]} 27. b4 {[%clk 0:03:20.6]} 27... axb3
{[%clk 0:02:04.8]} 28. axb3 {[%clk 0:03:19.1]} 28... Rb8 {[%clk 0:02:01.2]} 29.
Rb1 {[%clk 0:03:13.1]} 29... Bxb3 {[%clk 0:01:55.9]} 30. Qxh7+ {[%clk
0:03:11.9]} 30... Kxh7 {[%clk 0:01:52.3]} 31. Rh3# {[%clk 0:03:11.8]} 1-0

[Event "Live Chess"]
[Site "Chess.com"]
[Date "2023.05.20"]
[Round "-"]
[White "MaximKris"]
[Black "Chris_pea"]
[Result "1-0"]
[WhiteElo "1859"]
[BlackElo "615"]
[TimeControl "300"]
[EndTime "10:51:25 PDT"]
[Termination "MaximKris won on time"]

1. e4 {[%clk 0:04:57.1]} 1... e5 {[%clk 0:04:57.4]} 2. Nf3 {[%clk 0:04:55.9]}
2... Nc6 {[%clk 0:04:54.6]} 3. Bb5 {[%clk 0:04:54.1]} 3... Bc5 {[%clk
0:04:38.1]} 4. O-O {[%clk 0:04:52.6]} 4... Nf6 {[%clk 0:04:35.8]} 5. Nc3 {[%clk
0:04:49.8]} 5... O-O {[%clk 0:04:32.9]} 6. d3 {[%clk 0:04:46.9]} 6... a6 {[%clk
0:04:24.1]} 7. Bxc6 {[%clk 0:04:43.8]} 7... dxc6 {[%clk 0:04:19.8]} 8. Be3
{[%clk 0:04:42.3]} 8... Be7 {[%clk 0:04:00.6]} 9. Nxe5 {[%clk 0:04:39]} 9... Qd6
{[%clk 0:03:40.3]} 10. Nc4 {[%clk 0:04:37.1]} 10... Qd8 {[%clk 0:03:19.8]} 11.
e5 {[%clk 0:04:31.9]} 11... Nd5 {[%clk 0:03:14.8]} 12. Nxd5 {[%clk 0:04:28.7]}
12... cxd5 {[%clk 0:03:13]} 13. Nd2 {[%clk 0:04:27.5]} 13... f6 {[%clk
0:03:03.8]} 14. exf6 {[%clk 0:04:25.5]} 14... Bxf6 {[%clk 0:03:01.1]} 15. d4
{[%clk 0:04:25.1]} 15... Re8 {[%clk 0:02:45.4]} 16. Re1 {[%clk 0:04:22.2]} 16...
Bf5 {[%clk 0:02:31.4]} 17. c3 {[%clk 0:04:19]} 17... Qd7 {[%clk 0:02:12.9]} 18.
Qf3 {[%clk 0:04:12.8]} 18... Rad8 {[%clk 0:02:06.5]} 19. Bf4 {[%clk 0:04:08.1]}
19... Bg4 {[%clk 0:01:56.6]} 20. Rxe8+ {[%clk 0:04:05.4]} 20... Rxe8 {[%clk
0:01:48.9]} 21. Qg3 {[%clk 0:04:02.5]} 21... b6 {[%clk 0:01:28.2]} 22. Be5
{[%clk 0:03:54.5]} 22... Bxe5 {[%clk 0:01:03.8]} 23. dxe5 {[%clk 0:03:54.4]}
23... Qe6 {[%clk 0:01:01.7]} 24. h3 {[%clk 0:03:51.3]} 24... Bh5 {[%clk
0:00:44.5]} 25. f4 {[%clk 0:03:47.9]} 25... b5 {[%clk 0:00:31.5]} 26. Rf1 {[%clk
0:03:43.3]} 26... Qb6+ {[%clk 0:00:28.3]} 27. Qf2 {[%clk 0:03:40.5]} 27... Qxf2+
{[%clk 0:00:18.1]} 28. Rxf2 {[%clk 0:03:40.4]} 28... Rf8 {[%clk 0:00:11.8]} 29.
g4 {[%clk 0:03:38.5]} 29... Be8 {[%clk 0:00:09.4]} 30. f5 {[%clk 0:03:37.8]}
30... Bc6 {[%clk 0:00:07]} 31. e6 {[%clk 0:03:37.7]} 31... Re8 {[%clk
0:00:02.3]} 32. e7 {[%clk 0:03:37.6]} 32... Rxe7 {[%clk 0:00:00.4]} 33. Nf3
{[%clk 0:03:37.5]} 1-0

[Event "Live Chess"]
[Site "Chess.com"]
[Date "2023.05.20"]
[Round "-"]
[White "MaximKhimchenko"]
[Black "luckywookie"]
[Result "1-0"]
[WhiteElo "1348"]
[BlackElo "729"]
[TimeControl "300"]
[EndTime "10:51:27 PDT"]
[Termination "MaximKhimchenko won by resignation"]

1. e4 {[%clk 0:04:58]} 1... c6 {[%clk 0:04:57.3]} 2. Nf3 {[%clk 0:04:57.9]} 2...
d5 {[%clk 0:04:55.6]} 3. exd5 {[%clk 0:04:51.5]} 3... cxd5 {[%clk 0:04:52.9]} 4.
d4 {[%clk 0:04:45.3]} 4... Nc6 {[%clk 0:04:46.1]} 5. c4 {[%clk 0:04:45.2]} 5...
e6 {[%clk 0:04:40.6]} 6. cxd5 {[%clk 0:04:43.2]} 6... exd5 {[%clk 0:04:39]} 7.
Nc3 {[%clk 0:04:41.9]} 7... Be6 {[%clk 0:04:32.9]} 8. Bb5 {[%clk 0:04:37.2]}
8... Nf6 {[%clk 0:04:27.7]} 9. O-O {[%clk 0:04:31.1]} 9... Ne4 {[%clk
0:04:22.5]} 10. Nxe4 {[%clk 0:04:22.7]} 10... dxe4 {[%clk 0:04:20.2]} 11. Ne5
{[%clk 0:04:22.6]} 11... Bd6 {[%clk 0:04:09.6]} 12. Nxc6 {[%clk 0:04:17.5]}
12... bxc6 {[%clk 0:04:07.2]} 13. Bxc6+ {[%clk 0:04:17.4]} 13... Bd7 {[%clk
0:04:04.4]} 14. Bxa8 {[%clk 0:04:16.2]} 14... Qxa8 {[%clk 0:04:01.7]} 15. f3
{[%clk 0:04:14.8]} 15... exf3 {[%clk 0:03:58.8]} 16. Qxf3 {[%clk 0:04:14.7]}
16... Be6 {[%clk 0:03:53.4]} 17. Qxa8+ {[%clk 0:04:12.4]} 17... Ke7 {[%clk
0:03:49.6]} 18. Qxh8 {[%clk 0:04:12.3]} 1-0